[Event "NJSK 2022 Jeugd C"]
[Site "Almelo, Netherlands"]
[Date "2022.05.06"]
[Round "8.3"]
[White "Van Arendonk, Polle"]
[Black "Madularea, David"]
[Result "1-0"]
[TimeControl "90min + 30sec/move"]
[WhiteElo "1784"]
[BlackElo "1774"]

1. e4 {[%clk 01:30:57]} {[%emt 00:00:02]} c5 {[%clk 01:30:52]} {[%emt
00:00:07]} 2. Nf3 {[%clk 01:31:25]} {[%emt 00:00:05]} d6 {[%clk 01:31:16]}
{[%emt 00:00:08]} 3. d4 {[%clk 01:31:52]} {[%emt 00:00:01]} cxd4 {[%clk
01:31:40]} {[%emt 00:00:04]} 4. Nxd4 {[%clk 01:32:20]} {[%emt 00:00:02]} Nf6
{[%clk 01:32:03]} {[%emt 00:00:07]} 5. Nc3 {[%clk 01:32:45]} {[%emt 00:00:06]}
a6 {[%clk 01:32:25]} {[%emt 00:00:07]} 6. Be3 {[%clk 01:32:57]} {[%emt
00:00:19]} e5 {[%clk 01:32:48]} {[%emt 00:00:07]} 7. Nb3 {[%clk 01:33:21]}
{[%emt 00:00:06]} Be6 {[%clk 01:33:09]} {[%emt 00:00:09]} 8. f3 {[%clk
01:33:42]} {[%emt 00:00:10]} h5 {[%clk 01:33:32]} {[%emt 00:00:05]} 9. Qd2
{[%clk 01:33:38]} {[%emt 00:00:35]} Nbd7 {[%clk 01:30:06]} {[%emt 00:03:56]} 10.
Nd5 {[%clk 01:33:53]} {[%emt 00:00:15]} Bxd5 {[%clk 01:30:10]} {[%emt
00:00:26]} 11. exd5 {[%clk 01:34:15]} {[%emt 00:00:08]} Be7 {[%clk 01:29:36]}
{[%emt 00:01:04]} 12. Be2 {[%clk 01:33:08]} {[%emt 00:01:37]} Rc8 {[%clk
01:26:14]} {[%emt 00:03:52]} 13. c4 {[%clk 01:31:04]} {[%emt 00:02:35]} O-O
{[%clk 01:20:50]} {[%emt 00:05:52]} 14. Na5 {[%clk 01:27:47]} {[%emt 00:03:48]}
Qc7 {[%clk 01:16:52]} {[%emt 00:04:28]} 15. O-O {[%clk 01:25:29]} {[%emt
00:02:48]} Bd8 {[%clk 01:09:38]} {[%emt 00:07:44]} 16. b4 {[%clk 01:23:15]}
{[%emt 00:02:44]} Qb8 {[%clk 01:05:56]} {[%emt 00:04:12]} 17. Nb3 {[%clk
01:20:50]} {[%emt 00:02:55]} Re8 {[%clk 00:59:28]} {[%emt 00:06:57]} 18. Rac1
{[%clk 01:13:53]} {[%emt 00:07:28]} g6 {[%clk 00:49:13]} {[%emt 00:10:45]} 19.
c5 {[%clk 01:03:44]} {[%emt 00:10:39]} e4 {[%clk 00:45:19]} {[%emt 00:04:24]}
20. f4 {[%clk 01:02:04]} {[%emt 00:02:09]} Be7 {[%clk 00:39:47]} {[%emt
00:06:02]} 21. c6 {[%clk 00:59:42]} {[%emt 00:02:53]} Nf8 {[%clk 00:37:49]}
{[%emt 00:02:27]} 22. Na5 {[%clk 00:56:01]} {[%emt 00:04:12]} bxc6 {[%clk
00:32:52]} {[%emt 00:05:26]} 23. Nxc6 {[%clk 00:55:59]} {[%emt 00:00:32]} Qa8
{[%clk 00:31:50]} {[%emt 00:01:32]} 24. a4 {[%clk 00:50:39]} {[%emt 00:05:50]}
Ng4 {[%clk 00:29:37]} {[%emt 00:02:42]} 25. Bxg4 {[%clk 00:50:16]} {[%emt
00:00:54]} hxg4 {[%clk 00:30:01]} {[%emt 00:00:05]} 26. f5 {[%clk 00:47:40]}
{[%emt 00:03:07]} gxf5 {[%clk 00:27:14]} {[%emt 00:03:16]} 27. Rxf5 {[%clk
00:46:44]} {[%emt 00:01:26]} Ng6 {[%clk 00:27:08]} {[%emt 00:00:36]} 28. Rcf1
{[%clk 00:41:53]} {[%emt 00:05:22]} Rxc6 {[%clk 00:23:36]} {[%emt 00:04:02]} 29.
dxc6 {[%clk 00:42:11]} {[%emt 00:00:11]} Qxc6 {[%clk 00:23:29]} {[%emt
00:00:38]} 30. Rxf7 {[%clk 00:41:28]} {[%emt 00:01:13]} Ne5 {[%clk 00:23:44]}
{[%emt 00:00:15]} 31. R7f5 {[%clk 00:37:39]} {[%emt 00:04:19]} Bd8 {[%clk
00:21:57]} {[%emt 00:02:16]} 32. Bd4 {[%clk 00:36:07]} {[%emt 00:02:03]} e3
{[%clk 00:12:01]} {[%emt 00:10:26]} 33. Qe2 {[%clk 00:30:13]} {[%emt 00:06:23]}
Qc4 {[%clk 00:08:44]} {[%emt 00:03:47]} 34. Qxc4+ {[%clk 00:30:30]} {[%emt
00:00:13]} Nxc4 {[%clk 00:09:10]} {[%emt 00:00:05]} 35. Re1 {[%clk 00:29:44]}
{[%emt 00:01:16]} Re4 {[%clk 00:09:03]} {[%emt 00:00:37]} 36. Ba7 {[%clk
00:29:12]} {[%emt 00:01:03]} Re7 {[%clk 00:04:04]} {[%emt 00:05:28]} 37. Rf4
{[%clk 00:21:06]} {[%emt 00:08:36]} Rxa7 {[%clk 00:02:23]} {[%emt 00:02:11]} 38.
Rxg4+ {[%clk 00:19:44]} {[%emt 00:01:52]} Kh7 {[%clk 00:02:50]} {[%emt
00:00:04]} 39. Rxc4 {[%clk 00:20:08]} {[%emt 00:00:06]} d5 {[%clk 00:01:54]}
{[%emt 00:01:26]} 40. Rd4 {[%clk 00:11:13]} {[%emt 00:09:25]} Bb6 {[%clk
00:01:49]} {[%emt 00:00:35]} 41. Rxd5 {[%clk 00:11:39]} {[%emt 00:00:04]} Rf7
{[%clk 00:01:59]} {[%emt 00:00:19]} 42. Rc5 {[%clk 00:08:55]} {[%emt 00:03:15]}
a5 {[%clk 00:01:40]} {[%emt 00:00:49]} 43. Rxa5 {[%clk 00:07:24]} {[%emt
00:02:01]} Bd4 {[%clk 00:01:23]} {[%emt 00:00:46]} 44. Re2 {[%clk 00:06:14]}
{[%emt 00:01:41]} Rc7 {[%clk 00:01:22]} {[%emt 00:00:31]} 45. Rc5 {[%clk
00:05:54]} {[%emt 00:00:51]} Rb7 {[%clk 00:01:16]} {[%emt 00:00:35]} 46. Rc4
{[%clk 00:06:04]} {[%emt 00:00:20]} Ba7 {[%clk 00:01:41]} {[%emt 00:00:05]} 47.
Re4 {[%clk 00:05:29]} {[%emt 00:01:06]} Rd7 {[%clk 00:01:25]} {[%emt 00:00:45]}
48. R4xe3 {[%clk 00:04:59]} {[%emt 00:01:00]} Rf7 {[%clk 00:01:42]} {[%emt
00:00:13]} 49. h3 {[%clk 00:04:15]} {[%emt 00:01:14]} 1-0

[Event "NJSK 2022 Jeugd C"]
[Site "Almelo, Netherlands"]
[Date "2022.05.06"]
[Round "8.4"]
[White "Dekker, Thiemen"]
[Black "Smeets, Kobe"]
[Result "0-1"]
[TimeControl "90min + 30sec/move"]
[WhiteElo "1935"]
[BlackElo "1984"]

1. e4 {[%clk 01:30:58]} c5 {[%clk 01:30:56]} {[%emt 00:00:05]} 2. Nf3 {[%clk
01:31:25]} {[%emt 00:00:03]} e6 {[%clk 01:31:21]} {[%emt 00:00:06]} 3. d4
{[%clk 01:31:52]} {[%emt 00:00:02]} cxd4 {[%clk 01:31:46]} {[%emt 00:00:08]} 4.
Nxd4 {[%clk 01:32:17]} {[%emt 00:00:02]} Nc6 {[%clk 01:32:10]} {[%emt
00:00:06]} 5. Bf4 {[%clk 01:32:43]} {[%emt 00:00:04]} d6 {[%clk 01:31:55]}
{[%emt 00:00:45]} 6. Nxc6 {[%clk 01:33:07]} {[%emt 00:00:06]} bxc6 {[%clk
01:32:18]} {[%emt 00:00:07]} 7. c4 {[%clk 01:33:32]} {[%emt 00:00:05]} e5
{[%clk 01:31:49]} {[%emt 00:00:59]} 8. Be3 {[%clk 01:33:54]} {[%emt 00:00:09]}
Nf6 {[%clk 01:32:10]} {[%emt 00:00:09]} 9. Bd3 {[%clk 01:34:20]} {[%emt
00:00:04]} Be7 {[%clk 01:31:57]} {[%emt 00:00:41]} 10. O-O {[%clk 01:34:20]}
{[%emt 00:00:30]} O-O {[%clk 01:32:21]} {[%emt 00:00:07]} 11. Nc3 {[%clk
01:34:19]} {[%emt 00:00:31]} Be6 {[%clk 01:32:25]} {[%emt 00:00:26]} 12. h3
{[%clk 01:31:37]} {[%emt 00:03:12]} Qc7 {[%clk 01:27:04]} {[%emt 00:05:51]} 13.
Qe2 {[%clk 01:29:01]} {[%emt 00:03:07]} Rab8 {[%clk 01:24:28]} {[%emt
00:03:05]} 14. Rac1 {[%clk 01:26:56]} {[%emt 00:02:35]} Qb7 {[%clk 01:21:43]}
{[%emt 00:03:15]} 15. b3 {[%clk 01:23:21]} {[%emt 00:04:06]} Rfd8 {[%clk
01:14:09]} {[%emt 00:08:02]} 16. f4 {[%clk 01:17:17]} {[%emt 00:06:34]} exf4
{[%clk 01:13:40]} {[%emt 00:00:59]} 17. Bxf4 {[%clk 01:17:06]} {[%emt
00:00:42]} Nd7 {[%clk 01:12:54]} {[%emt 00:01:17]} 18. Rfd1 {[%clk 01:06:23]}
{[%emt 00:11:13]} Ne5 {[%clk 00:53:37]} {[%emt 00:19:47]} 19. c5 {[%clk
00:58:54]} {[%emt 00:07:58]} Bf6 {[%clk 00:45:41]} {[%emt 00:08:26]} 20. cxd6
{[%clk 00:50:32]} {[%emt 00:08:52]} Rxd6 {[%clk 00:45:46]} {[%emt 00:00:25]} 21.
Na4 {[%clk 00:48:46]} {[%emt 00:02:16]} Rxd3 {[%clk 00:28:15]} {[%emt
00:18:01]} 22. Rxd3 {[%clk 00:48:24]} {[%emt 00:00:52]} Nxd3 {[%clk 00:28:40]}
{[%emt 00:00:04]} 23. Qxd3 {[%clk 00:48:20]} {[%emt 00:00:35]} Rd8 {[%clk
00:29:04]} {[%emt 00:00:07]} 24. Qf3 {[%clk 00:43:57]} {[%emt 00:04:52]} Qb4
{[%clk 00:22:43]} {[%emt 00:06:51]} 25. Kh2 {[%clk 00:34:37]} {[%emt 00:09:41]}
Bd4 {[%clk 00:18:34]} {[%emt 00:04:48]} 26. Qg3 {[%clk 00:29:19]} {[%emt
00:05:48]} Qb5 {[%clk 00:16:09]} {[%emt 00:02:55]} 27. Qg5 {[%clk 00:24:06]}
{[%emt 00:05:43]} Qxg5 {[%clk 00:16:08]} {[%emt 00:00:31]} 28. Bxg5 {[%clk
00:24:20]} {[%emt 00:00:17]} Be5+ {[%clk 00:16:26]} {[%emt 00:00:11]} 29. Kg1
{[%clk 00:22:11]} {[%emt 00:02:38]} Rd4 {[%clk 00:10:45]} {[%emt 00:06:12]} 30.
Nc5 {[%clk 00:17:03]} {[%emt 00:05:38]} Bc8 {[%clk 00:11:06]} {[%emt 00:00:09]}
31. Be3 {[%clk 00:16:49]} {[%emt 00:00:44]} Rd6 {[%clk 00:10:56]} {[%emt
00:00:40]} 32. Kf2 {[%clk 00:15:14]} {[%emt 00:02:05]} f5 {[%clk 00:10:44]}
{[%emt 00:00:42]} 33. exf5 {[%clk 00:12:35]} {[%emt 00:03:08]} Bxf5 {[%clk
00:11:06]} {[%emt 00:00:09]} 34. g4 {[%clk 00:11:59]} {[%emt 00:01:05]} Bg6
{[%clk 00:10:58]} {[%emt 00:00:39]} 35. Kg1 {[%clk 00:08:23]} {[%emt 00:04:06]}
Bb2 {[%clk 00:07:48]} {[%emt 00:03:40]} 36. Rf1 {[%clk 00:07:08]} {[%emt
00:01:45]} Bf7 {[%clk 00:07:39]} {[%emt 00:00:38]} 37. Na4 {[%clk 00:06:05]}
{[%emt 00:01:34]} Be5 {[%clk 00:07:12]} {[%emt 00:00:57]} 38. Nc5 {[%clk
00:04:39]} {[%emt 00:01:56]} Rd8 {[%clk 00:05:34]} {[%emt 00:02:07]} 39. Rc1
{[%clk 00:03:55]} {[%emt 00:01:14]} Bd5 {[%clk 00:05:51]} {[%emt 00:00:14]} 40.
Rf1 {[%clk 00:03:30]} {[%emt 00:00:55]} Re8 {[%clk 00:04:45]} {[%emt 00:01:36]}
41. Nd7 {[%clk 00:02:32]} {[%emt 00:01:29]} Bd6 {[%clk 00:04:03]} {[%emt
00:01:11]} 42. Bc5 {[%clk 00:02:05]} {[%emt 00:00:57]} Bxc5+ {[%clk 00:04:17]}
{[%emt 00:00:16]} 43. Nxc5 {[%clk 00:02:31]} {[%emt 00:00:04]} Re3 {[%clk
00:04:35]} {[%emt 00:00:12]} 44. Nd7 {[%clk 00:01:39]} {[%emt 00:01:22]} h6
{[%clk 00:04:42]} {[%emt 00:00:22]} 45. Rf8+ {[%clk 00:01:36]} {[%emt
00:00:33]} Kh7 {[%clk 00:05:00]} {[%emt 00:00:13]} 46. Ra8 {[%clk 00:01:24]}
{[%emt 00:00:42]} Rxh3 {[%clk 00:04:56]} {[%emt 00:00:33]} 47. Rxa7 {[%clk
00:01:44]} {[%emt 00:00:11]} Kg8 {[%clk 00:02:53]} {[%emt 00:02:32]} 48. Ne5
{[%clk 00:01:29]} {[%emt 00:00:45]} Re3 {[%clk 00:02:50]} {[%emt 00:00:33]} 49.
Ra8+ {[%clk 00:01:17]} {[%emt 00:00:42]} Kh7 {[%clk 00:03:05]} {[%emt
00:00:15]} 50. Nd7 {[%clk 00:01:25]} {[%emt 00:00:22]} Kg6 {[%clk 00:01:32]}
{[%emt 00:02:03]} 51. Kf2 {[%clk 00:01:12]} {[%emt 00:00:43]} Re7 {[%clk
00:01:42]} {[%emt 00:00:21]} 52. Nc5 {[%clk 00:01:21]} {[%emt 00:00:21]} Kg5
{[%clk 00:01:38]} {[%emt 00:00:34]} 53. a4 {[%clk 00:01:43]} {[%emt 00:00:09]}
Kxg4 {[%clk 00:01:42]} {[%emt 00:00:25]} 54. a5 {[%clk 00:02:02]} {[%emt
00:00:11]} h5 {[%clk 00:01:34]} {[%emt 00:00:38]} 55. a6 {[%clk 00:02:25]}
{[%emt 00:00:08]} h4 {[%clk 00:01:31]} {[%emt 00:00:33]} 56. a7 {[%clk
00:02:22]} {[%emt 00:00:33]} h3 {[%emt 00:01:13]} 0-1

[Event "NJSK 2022 Jeugd C"]
[Site "Almelo, Netherlands"]
[Date "2022.05.06"]
[Round "8.5"]
[White "Zhu, Chenwu"]
[Black "Kurt, Sascha"]
[Result "1-0"]
[TimeControl "90min + 30sec/move"]
[WhiteElo "1968"]
[BlackElo "1834"]

1. e4 {[%clk 01:30:51]} {[%emt 00:00:07]} c5 {[%clk 01:30:54]} {[%emt
00:00:07]} 2. Nf3 {[%clk 01:31:10]} {[%emt 00:00:11]} e6 {[%clk 01:31:19]}
{[%emt 00:00:04]} 3. b3 {[%clk 01:31:25]} {[%emt 00:00:16]} Nf6 {[%clk
01:30:45]} {[%emt 00:01:05]} 4. e5 {[%clk 01:30:14]} {[%emt 00:01:40]} Nd5
{[%clk 01:30:45]} {[%emt 00:00:30]} 5. Bb2 {[%clk 01:29:58]} {[%emt 00:00:46]}
Nc6 {[%clk 01:30:54]} {[%emt 00:00:21]} 6. g3 {[%clk 01:28:56]} {[%emt
00:01:32]} Be7 {[%clk 01:27:56]} {[%emt 00:03:28]} 7. Bg2 {[%clk 01:25:42]}
{[%emt 00:03:43]} O-O {[%clk 01:28:14]} {[%emt 00:00:12]} 8. O-O {[%clk
01:25:27]} {[%emt 00:00:46]} f6 {[%clk 01:25:04]} {[%emt 00:03:40]} 9. c4
{[%clk 01:22:41]} {[%emt 00:03:16]} Ndb4 {[%clk 01:24:22]} {[%emt 00:01:11]} 10.
d4 {[%clk 01:19:31]} {[%emt 00:03:40]} cxd4 {[%clk 01:23:20]} {[%emt 00:01:33]}
11. a3 {[%clk 01:17:57]} {[%emt 00:02:04]} Na6 {[%clk 01:23:23]} {[%emt
00:00:27]} 12. exf6 {[%clk 01:14:19]} {[%emt 00:04:08]} Bxf6 {[%clk 01:23:20]}
{[%emt 00:00:32]} 13. b4 {[%clk 01:09:25]} {[%emt 00:05:24]} Ne7 {[%clk
01:05:16]} {[%emt 00:18:35]} 14. Bxd4 {[%clk 01:06:51]} {[%emt 00:03:04]} d6
{[%clk 01:01:48]} {[%emt 00:03:58]} 15. Bxf6 {[%clk 01:05:23]} {[%emt
00:01:58]} Rxf6 {[%clk 01:01:32]} {[%emt 00:00:47]} 16. Nc3 {[%clk 01:03:56]}
{[%emt 00:01:56]} d5 {[%clk 00:57:08]} {[%emt 00:04:54]} 17. Qd3 {[%clk
00:59:12]} {[%emt 00:05:14]} b6 {[%clk 00:54:15]} {[%emt 00:03:24]} 18. Rad1
{[%clk 00:54:23]} {[%emt 00:05:18]} Bb7 {[%clk 00:53:19]} {[%emt 00:01:25]} 19.
Ng5 {[%clk 00:49:22]} {[%emt 00:05:31]} Rg6 {[%clk 00:48:59]} {[%emt 00:04:50]}
20. Nh3 {[%clk 00:48:31]} {[%emt 00:01:22]} Nc7 {[%clk 00:46:19]} {[%emt
00:03:10]} 21. Nf4 {[%clk 00:44:51]} {[%emt 00:04:09]} Rf6 {[%clk 00:45:44]}
{[%emt 00:01:05]} 22. cxd5 {[%clk 00:42:38]} {[%emt 00:02:44]} exd5 {[%clk
00:46:03]} {[%emt 00:00:11]} 23. Nfxd5 {[%clk 00:42:04]} {[%emt 00:01:03]}
Nexd5 {[%clk 00:46:23]} {[%emt 00:00:11]} 24. Nxd5 {[%clk 00:41:07]} {[%emt
00:01:27]} Nxd5 {[%clk 00:46:33]} {[%emt 00:00:20]} 25. Bxd5+ {[%clk 00:41:32]}
{[%emt 00:00:05]} Qxd5 {[%clk 00:46:38]} {[%emt 00:00:25]} 26. Qxd5+ {[%clk
00:41:51]} {[%emt 00:00:10]} Bxd5 {[%clk 00:47:04]} {[%emt 00:00:04]} 27. Rxd5
{[%clk 00:42:15]} {[%emt 00:00:06]} Rf3 {[%clk 00:47:13]} {[%emt 00:00:22]} 28.
Rd7 {[%clk 00:40:53]} {[%emt 00:01:53]} Rf7 {[%clk 00:36:44]} {[%emt 00:10:58]}
29. Rfd1 {[%clk 00:39:30]} {[%emt 00:01:53]} Rxd7 {[%clk 00:36:12]} {[%emt
00:01:02]} 30. Rxd7 {[%clk 00:39:45]} a6 {[%clk 00:32:37]} {[%emt 00:04:21]} 31.
f4 {[%clk 00:39:35]} {[%emt 00:00:39]} g6 {[%clk 00:29:17]} {[%emt 00:03:50]}
32. Kg2 {[%clk 00:38:59]} {[%emt 00:01:06]} Kh8 {[%clk 00:27:56]} {[%emt
00:01:50]} 33. Kh3 {[%clk 00:38:49]} {[%emt 00:00:40]} b5 {[%clk 00:27:06]}
{[%emt 00:01:21]} 34. Kg4 {[%clk 00:38:23]} {[%emt 00:00:55]} h6 {[%clk
00:26:27]} {[%emt 00:01:10]} 35. h4 {[%clk 00:38:20]} {[%emt 00:00:33]} Rc8
{[%clk 00:26:01]} {[%emt 00:00:56]} 36. Rd6 {[%clk 00:38:29]} {[%emt 00:00:21]}
Kg7 {[%clk 00:25:19]} {[%emt 00:01:12]} 37. Rxa6 {[%clk 00:38:41]} {[%emt
00:00:18]} Rc3 {[%clk 00:25:38]} {[%emt 00:00:11]} 38. Rb6 {[%clk 00:38:37]}
{[%emt 00:00:34]} Rxa3 {[%clk 00:26:02]} {[%emt 00:00:07]} 39. Rxb5 {[%clk
00:39:03]} {[%emt 00:00:04]} Rb3 {[%clk 00:26:04]} {[%emt 00:00:28]} 40. Rb7+
{[%clk 00:37:06]} {[%emt 00:02:27]} Kf6 {[%clk 00:26:16]} {[%emt 00:00:16]} 41.
Rb6+ {[%clk 00:36:07]} {[%emt 00:01:31]} Kg7 {[%clk 00:26:31]} {[%emt
00:00:14]} 42. h5 {[%clk 00:36:21]} {[%emt 00:00:17]} gxh5+ {[%clk 00:26:49]}
{[%emt 00:00:12]} 43. Kh4 {[%clk 00:36:31]} {[%emt 00:00:20]} Rf3 {[%clk
00:25:22]} {[%emt 00:01:56]} 44. b5 {[%clk 00:34:02]} {[%emt 00:03:00]} Rb3
{[%clk 00:25:05]} {[%emt 00:00:47]} 45. Rb8 {[%clk 00:31:27]} {[%emt 00:03:06]}
Kg6 {[%clk 00:24:48]} {[%emt 00:00:44]} 46. b6 {[%clk 00:31:00]} {[%emt
00:00:58]} Rb1 {[%clk 00:24:03]} {[%emt 00:01:16]} 47. Kh3 {[%clk 00:31:14]}
{[%emt 00:00:16]} h4 {[%clk 00:24:00]} {[%emt 00:00:33]} 48. b7 {[%clk
00:31:08]} {[%emt 00:00:37]} Kg7 {[%clk 00:24:24]} {[%emt 00:00:05]} 49. Kxh4
{[%clk 00:31:28]} {[%emt 00:00:10]} Rb5 {[%clk 00:24:19]} {[%emt 00:00:35]} 50.
f5 {[%clk 00:30:59]} {[%emt 00:00:59]} Rb4+ {[%emt 00:01:08]} 51. Kh3 {[%clk
00:31:17]} h5 {[%clk 00:24:02]} {[%emt 00:00:21]} 52. f6+ {[%clk 00:31:37]}
{[%emt 00:00:10]} Kf7 {[%clk 00:24:19]} {[%emt 00:00:12]} 53. Rh8 {[%clk
00:31:57]} {[%emt 00:00:11]} 1-0

[Event "NJSK 2022 Jeugd C"]
[Site "Almelo, Netherlands"]
[Date "2022.05.06"]
[Round "8.6"]
[White "Zecha, Oscar"]
[Black "Terlouw, Wouter"]
[Result "1/2-1/2"]
[TimeControl "90min + 30sec/move"]
[WhiteElo "1826"]
[BlackElo "1578"]

1. d4 {[%clk 01:30:57]} {[%emt 00:00:03]} Nf6 {[%clk 01:30:57]} {[%emt
00:00:03]} 2. c4 {[%clk 01:31:25]} {[%emt 00:00:02]} e6 {[%clk 01:31:23]}
{[%emt 00:00:04]} 3. Nf3 {[%clk 01:31:52]} {[%emt 00:00:02]} b6 {[%clk
01:31:46]} {[%emt 00:00:09]} 4. g3 {[%clk 01:32:19]} {[%emt 00:00:02]} Bb7
{[%clk 01:32:11]} {[%emt 00:00:05]} 5. Bg2 {[%clk 01:32:42]} {[%emt 00:00:06]}
c5 {[%clk 01:32:36]} {[%emt 00:00:07]} 6. d5 {[%clk 01:26:34]} {[%emt
00:06:36]} exd5 {[%clk 01:31:35]} {[%emt 00:01:31]} 7. Nh4 {[%clk 01:26:38]}
{[%emt 00:00:25]} g6 {[%clk 01:29:28]} {[%emt 00:02:37]} 8. Nc3 {[%clk
01:24:46]} {[%emt 00:02:24]} Bg7 {[%clk 01:28:42]} {[%emt 00:01:15]} 9. Nb5
{[%clk 01:16:59]} {[%emt 00:08:17]} O-O {[%clk 01:26:51]} {[%emt 00:02:20]} 10.
Bf4 {[%clk 01:15:01]} {[%emt 00:02:28]} Ne8 {[%clk 01:23:55]} {[%emt 00:03:27]}
11. Bxd5 {[%clk 01:09:31]} {[%emt 00:05:59]} Bxd5 {[%clk 01:23:24]} {[%emt
00:01:01]} 12. Qxd5 {[%clk 01:09:47]} {[%emt 00:00:14]} Nc6 {[%clk 01:22:43]}
{[%emt 00:01:12]} 13. Qd2 {[%clk 01:03:28]} {[%emt 00:06:49]} Nd4 {[%clk
01:09:41]} {[%emt 00:13:32]} 14. Nxd4 {[%clk 00:58:26]} {[%emt 00:05:32]} Bxd4
{[%clk 01:08:32]} {[%emt 00:01:39]} 15. Ng2 {[%clk 00:55:05]} {[%emt 00:03:51]}
Qe7 {[%clk 01:04:13]} {[%emt 00:04:45]} 16. O-O {[%clk 00:50:12]} {[%emt
00:05:27]} d6 {[%clk 00:55:38]} {[%emt 00:09:05]} 17. Rad1 {[%clk 00:44:33]}
{[%emt 00:06:09]} Rd8 {[%clk 00:51:23]} {[%emt 00:04:44]} 18. Ne3 {[%clk
00:42:53]} {[%emt 00:02:11]} Nc7 {[%clk 00:47:16]} {[%emt 00:04:36]} 19. h4
{[%clk 00:41:18]} {[%emt 00:02:06]} Be5 {[%clk 00:45:08]} {[%emt 00:02:36]} 20.
Bxe5 {[%clk 00:39:29]} {[%emt 00:02:20]} dxe5 {[%clk 00:44:33]} {[%emt
00:01:06]} 21. Qc3 {[%clk 00:35:52]} {[%emt 00:04:06]} Qe6 {[%clk 00:37:20]}
{[%emt 00:07:43]} 22. b3 {[%clk 00:33:06]} {[%emt 00:03:17]} f6 {[%clk
00:34:23]} {[%emt 00:03:27]} 23. Kh2 {[%clk 00:32:09]} {[%emt 00:01:26]} Rd4
{[%clk 00:33:44]} {[%emt 00:01:08]} 24. Nc2 {[%clk 00:30:38]} {[%emt 00:02:02]}
Rd6 {[%clk 00:28:11]} {[%emt 00:06:02]} 25. Rxd6 {[%clk 00:28:27]} {[%emt
00:02:42]} Qxd6 {[%clk 00:28:14]} {[%emt 00:00:28]} 26. Ne3 {[%clk 00:28:37]}
{[%emt 00:00:20]} Rd8 {[%clk 00:27:29]} {[%emt 00:01:15]} 27. Rd1 {[%clk
00:28:37]} {[%emt 00:00:29]} Qe7 {[%clk 00:26:24]} {[%emt 00:01:35]} 28. Rxd8+
{[%clk 00:26:24]} {[%emt 00:02:44]} Qxd8 {[%clk 00:26:45]} {[%emt 00:00:08]} 29.
Ng4 {[%clk 00:26:26]} {[%emt 00:00:28]} h5 {[%clk 00:23:57]} {[%emt 00:03:14]}
30. Ne3 {[%clk 00:25:52]} {[%emt 00:01:08]} Kf7 {[%clk 00:20:03]} {[%emt
00:04:23]} 31. Qc2 {[%clk 00:25:04]} {[%emt 00:01:19]} Qd4 {[%clk 00:19:03]}
{[%emt 00:01:24]} 32. Kg2 {[%clk 00:24:42]} {[%emt 00:00:55]} f5 {[%clk
00:16:23]} {[%emt 00:03:12]} 33. Nf1 {[%clk 00:22:13]} {[%emt 00:02:59]} Na6
{[%clk 00:14:54]} {[%emt 00:01:59]} 34. Qd2 {[%clk 00:20:48]} {[%emt 00:01:55]}
Qxd2 {[%clk 00:14:02]} {[%emt 00:01:23]} 35. Nxd2 {[%clk 00:21:15]} {[%emt
00:00:03]} Nb4 {[%clk 00:14:20]} {[%emt 00:00:12]} 36. a4 {[%clk 00:21:09]}
{[%emt 00:00:35]} Ke6 {[%clk 00:13:56]} {[%emt 00:00:54]} 37. Kf3 {[%clk
00:20:26]} {[%emt 00:01:13]} Nc2 {[%clk 00:12:47]} {[%emt 00:01:40]} 38. e3
{[%clk 00:15:50]} {[%emt 00:05:06]} e4+ {[%clk 00:12:41]} {[%emt 00:00:36]} 39.
Ke2 {[%clk 00:14:28]} {[%emt 00:01:52]} Nb4 {[%clk 00:11:30]} {[%emt 00:01:40]}
40. f4 {[%clk 00:10:14]} {[%emt 00:04:44]} Nc2 {[%clk 00:09:35]} {[%emt
00:02:25]} 41. Nf1 {[%clk 00:09:22]} {[%emt 00:01:21]} Kd6 {[%clk 00:09:00]}
{[%emt 00:01:06]} 42. Kd2 {[%clk 00:08:56]} {[%emt 00:00:54]} Nb4 {[%clk
00:09:24]} {[%emt 00:00:08]} 43. Kc3 {[%clk 00:09:11]} {[%emt 00:00:15]} Kc6
{[%clk 00:08:40]} {[%emt 00:01:15]} 44. Nd2 {[%clk 00:08:18]} {[%emt 00:01:23]}
Nd3 {[%clk 00:08:12]} {[%emt 00:00:58]} 45. Nf1 {[%clk 00:06:53]} {[%emt
00:01:53]} 1/2-1/2

[Event "NJSK 2022 Jeugd C"]
[Site "Almelo, Netherlands"]
[Date "2022.05.06"]
[Round "8.7"]
[White "Fallaux, Storm"]
[Black "Arnold, Rhys"]
[Result "0-1"]
[TimeControl "90min + 30sec/move"]
[WhiteElo "1459"]
[BlackElo "1846"]

1. d4 {[%clk 01:30:58]} {[%emt 00:00:02]} d5 {[%clk 01:30:54]} {[%emt
00:00:06]} 2. c4 {[%clk 01:31:25]} {[%emt 00:00:04]} c6 {[%clk 01:31:20]}
{[%emt 00:00:07]} 3. Nf3 {[%clk 01:31:51]} {[%emt 00:00:02]} Nf6 {[%clk
01:31:45]} {[%emt 00:00:03]} 4. e3 {[%clk 01:32:16]} {[%emt 00:00:05]} e6
{[%clk 01:31:29]} {[%emt 00:00:46]} 5. b3 {[%clk 01:32:34]} {[%emt 00:00:12]}
Ne4 {[%clk 01:30:59]} {[%emt 00:00:59]} 6. Nbd2 {[%clk 01:32:43]} {[%emt
00:00:22]} Bd6 {[%clk 01:29:38]} {[%emt 00:01:51]} 7. Nxe4 {[%clk 01:28:57]}
{[%emt 00:04:16]} dxe4 {[%clk 01:30:04]} {[%emt 00:00:05]} 8. Nd2 {[%clk
01:29:10]} {[%emt 00:00:17]} f5 {[%clk 01:29:48]} {[%emt 00:00:45]} 9. f3
{[%clk 01:28:52]} {[%emt 00:00:49]} Qh4+ {[%clk 01:29:46]} {[%emt 00:00:32]} 10.
Ke2 {[%clk 01:29:00]} {[%emt 00:00:22]} O-O {[%clk 01:27:31]} {[%emt 00:02:45]}
11. c5 {[%clk 01:28:28]} {[%emt 00:01:03]} Bc7 {[%clk 01:27:07]} {[%emt
00:00:53]} 12. f4 {[%clk 01:28:40]} {[%emt 00:00:18]} b6 {[%clk 01:27:20]}
{[%emt 00:00:17]} 13. g3 {[%clk 01:28:35]} {[%emt 00:00:34]} Qf6 {[%clk
01:26:54]} {[%emt 00:00:56]} 14. b4 {[%clk 01:28:20]} {[%emt 00:00:47]} a5
{[%clk 01:27:09]} {[%emt 00:00:14]} 15. Ba3 {[%clk 01:28:19]} {[%emt 00:00:30]}
axb4 {[%clk 01:24:56]} {[%emt 00:02:43]} 16. Bxb4 {[%clk 01:28:35]} {[%emt
00:00:15]} Na6 {[%clk 01:24:39]} {[%emt 00:00:47]} 17. a3 {[%clk 01:28:25]}
{[%emt 00:00:40]} bxc5 {[%clk 01:24:59]} {[%emt 00:00:10]} 18. Bxc5 {[%clk
01:28:35]} {[%emt 00:00:20]} Nxc5 {[%clk 01:25:21]} {[%emt 00:00:07]} 19. dxc5
{[%clk 01:28:48]} {[%emt 00:00:17]} e5 {[%clk 01:24:32]} {[%emt 00:01:20]} 20.
Bg2 {[%clk 01:23:06]} {[%emt 00:06:11]} exf4 {[%clk 01:24:41]} {[%emt
00:00:21]} 21. exf4 {[%clk 01:23:15]} {[%emt 00:00:21]} Ba6+ {[%clk 01:24:59]}
{[%emt 00:00:13]} 22. Kf2 {[%clk 01:23:24]} {[%emt 00:00:21]} Qd4+ {[%clk
01:25:19]} {[%emt 00:00:10]} 0-1